fUSD/lending_fUSD_20250811
["ID","MTS","AMOUNT","RATE_DAILY","PERIOD"]
[378565444,1754913126564,-400.0,0.00017997,2]
[378565445,1754913126574,-400.0,0.00017997,2]
[378565446,1754913126583,-942.14,0.00017997,2]
[378565447,1754913126593,-1106.68,0.00017997,2]
[378565448,1754913126602,-400.0,0.00017997,2]
[378565449,1754913126611,-400.0,0.00017997,2]
[378565450,1754913126620,-400.0,0.00017997,2]
[378565451,1754913126629,-400.0,0.00017997,2]
[378565452,1754913126639,-400.0,0.00017997,2]
[378565453,1754913126650,-400.0,0.00017997,2]
[378565454,1754913126659,-400.0,0.00017997,2]
[378565455,1754913126668,-1052.13,0.00017997,2]
[378565456,1754913126677,-400.0,0.00017997,2]
[378565457,1754913126687,-400.0,0.00017997,2]
[378565458,1754913126697,-1101.67,0.00017997,2]
[378565459,1754913126706,-797.74,0.00017997,2]
[378565460,1754913126715,-335.53002335,0.00017997,2]
[378565461,1754913126724,-509.05,0.00017997,2]
[378565462,1754913126733,-867.17,0.00017997,2]
[378565463,1754913126742,-400.0,0.00017997,2]
[378565464,1754913126752,-180.0,0.00017997,2]
[378565465,1754913126760,-343.83022403,0.00017997,2]
[378565466,1754913126769,-400.0,0.00017997,2]
[378565467,1754913126779,-461.42,0.00017997,2]
[378565468,1754913126788,-400.0,0.00017997,2]
[378565469,1754913126797,-400.0,0.00017997,2]
[378565470,1754913126806,-1324.87,0.00017997,2]
[378565471,1754913126816,-400.0,0.00017997,2]
[378565472,1754913126825,-400.0,0.00017997,2]
[378565473,1754913126835,-421.63,0.00017997,2]
[378565474,1754913126844,-741.06,0.00017997,2]
[378565475,1754913126853,-575.31,0.00017997,2]
[378565476,1754913126862,-1082.33,0.00017997,2]
[378565477,1754913126871,-1024.95,0.00017997,2]
[378565478,1754913126881,-520.23985225,0.00017997,2]
[378565479,1754913126890,-1071.51,0.00017997,2]
[378565480,1754913126900,-400.0,0.00017997,2]
[378565481,1754913126911,-400.0,0.00017997,2]
[378565482,1754913126919,-697.27,0.00017997,2]
[378565483,1754913126930,-410.96,0.00017997,2]
[378565484,1754913126940,-400.0,0.00017997,2]
[378565485,1754913126949,-400.0,0.00017997,2]
[378565486,1754913126959,-400.0,0.00017997,2]
[378565487,1754913126968,-400.0,0.00017997,2]
[378565488,1754913126977,-400.0,0.00017997,2]
[378565489,1754913126987,-400.0,0.00017997,2]
[378565490,1754913126997,-400.0,0.00017997,2]
[378565491,1754913127006,-400.0,0.00017997,2]
[378565492,1754913127015,-400.0,0.00017997,2]
[378565493,1754913127024,-400.0,0.00017997,2]
[378565494,1754913127034,-400.0,0.00017997,2]
[378565495,1754913127043,-629.24,0.00017997,2]
[378565496,1754913127053,-472.02,0.00017997,2]
[378565497,1754913127062,-400.0,0.00017997,2]
[378565498,1754913127071,-400.0,0.00017997,2]
[378565499,1754913127081,-613.38,0.00017997,2]
[378565500,1754913127091,-400.0,0.00017997,2]
[378565501,1754913127100,-519.76,0.00017997,2]
[378565502,1754913127110,-901.95,0.00017997,2]
[378565503,1754913127119,-647.41,0.00017997,2]
[378565504,1754913127128,-400.0,0.00017997,2]
[378565505,1754913127138,-400.0,0.00017997,2]
[378565506,1754913127149,-400.0,0.00017997,2]
[378565507,1754913127158,-400.0,0.00017997,2]
[378565508,1754913127168,-400.0,0.00017997,2]
[378565509,1754913127177,-572.02,0.00017997,2]
[378565510,1754913127186,-631.5,0.00017997,2]
[378565511,1754913127196,-498.49,0.00017997,2]
[378565512,1754913127206,-400.0,0.00017997,2]
[378565513,1754913127215,-400.0,0.00017997,2]
[378565514,1754913127224,-483.81,0.00017997,2]
[378565515,1754913127234,-714.46,0.00017997,2]
[378565516,1754913127244,-400.0,0.00017997,2]
[378565517,1754913127255,-400.0,0.00017997,2]
[378565518,1754913127266,-400.0,0.00017997,2]
[378565519,1754913127276,-433.36,0.00017997,2]
[378565520,1754913127286,-775.91,0.00017997,2]
[378565521,1754913127295,-400.0,0.00017997,2]
[378565522,1754913127307,-150.0,0.00017997,2]
[378565523,1754913127317,-353.915417,0.00017998,2]
[378565524,1754913127326,-353.915417,0.00017998,2]
[378565525,1754913127339,-2498.829249,0.00017998,2]
[378565526,1754913127349,-2498.829242,0.00017998,2]
[378565527,1754913127359,-1242.63,0.00017998,2]
[378565528,1754913127368,-2402.588643,0.00017998,2]
[378565529,1754913127377,-2402.588642,0.00017998,2]
[378565530,1754913127387,-419.089911,0.00017998,2]
[378565531,1754913127399,-419.089917,0.00017998,2]
[378565532,1754913127408,-151.0,0.00017998,2]
[378565533,1754913127417,-150.0,0.00017999,2]
[378565534,1754913127428,-500.0,0.00017999,2]
[378565535,1754913127437,-200.60775032,0.00017999,2]
[378565536,1754913127447,-500.0,0.00017999,2]
[378565537,1754913127458,-618.11588119,0.00017999,2]
[378565538,1754913127468,-500.0,0.00017999,2]
[378565539,1754913127478,-500.0,0.00017999,2]
[378565540,1754913127488,-151.0,0.00017999,2]
[378565541,1754913127498,-151.0,0.00017999,2]
[378565542,1754913127507,-218.917503,0.00017999,2]
[378565543,1754913127517,-218.917503,0.00017999,2]
[378565544,1754913127527,-799.520841,0.00017999,2]
[378565545,1754913127537,-799.520841,0.00017999,2]
[378565546,1754913127546,-223.997593,0.00017999,2]
[378565547,1754913127556,-151.0,0.00017999,2]
[378565548,1754913127566,-223.997593,0.00017999,2]
[378565549,1754913127575,-240.543454,0.00017999,2]
[378565550,1754913127584,-240.543454,0.00017999,2]
[378565551,1754913127594,-581.201779,0.00017999,2]
[378565552,1754913127603,-581.201779,0.00017999,2]
[378565553,1754913127612,-151.0,0.00017999,2]
[378565554,1754913127622,-309.853147,0.00017999,2]
[378565555,1754913127631,-309.853147,0.00017999,2]
[378565556,1754913127640,-1271.592475,0.00017999,2]
[378565557,1754913127650,-1271.592475,0.00017999,2]
[378565558,1754913127660,-1333.45234028,0.00018,2]
[378565559,1754913127670,-2197.80648131,0.00018,4]
[378565560,1754913127679,-256.99,0.00018,2]
[378565561,1754913127689,-880.88104196,0.00018,2]
[378565562,1754913127698,-575.31,0.00018015,2]
[378565563,1754913127708,-150.0,0.00018015,2]
[378565564,1754913127718,-1000.0,0.00018021,2]
[378565565,1754913127727,-171.18616283,0.00018021,2]
[378565566,1754913127736,-1000.0,0.00018021,2]
[378565567,1754913127746,-3255.99204981,0.00018051,2]
[378565568,1754913127755,-150.0,0.00018058,2]
[378565569,1754913127765,-150.0,0.00018058,2]
[378565570,1754913127774,-150.0,0.00018058,2]
[378565571,1754913127784,-150.0,0.00018058,2]
[378565572,1754913127794,-353.915417,0.0001807,2]
[378565573,1754913127803,-353.915417,0.0001807,2]
[378565574,1754913127813,-309.194123,0.00018076,2]
[378565575,1754913127822,-309.194123,0.00018076,2]
[378565576,1754913127831,-264.870503,0.00018076,2]
[378565577,1754913127840,-264.870503,0.00018076,2]
[378565578,1754913127850,-951.220244,0.00018076,2]
[378565579,1754913127860,-951.220244,0.00018076,2]
[378565580,1754913127869,-151.0,0.00018076,2]
[378565581,1754913127879,-151.0,0.00018076,2]
[378565582,1754913127888,-151.0,0.00018076,2]
[378565583,1754913127898,-151.0,0.00018076,2]
[378565584,1754913127908,-349.849984,0.00018076,2]
[378565585,1754913127917,-349.849984,0.00018076,2]
[378565586,1754913127927,-151.0,0.00018076,2]
[378565587,1754913127937,-151.0,0.00018076,2]
[378565588,1754913127946,-151.0,0.00018076,2]
[378565589,1754913127955,-154.04177,0.00018076,2]
[378565590,1754913127965,-154.04177,0.00018076,2]
[378565591,1754913127974,-353.915417,0.00018076,2]
[378565592,1754913127984,-353.915417,0.00018076,2]
[378565593,1754913127993,-218.917503,0.00018076,2]
[378565594,1754913128002,-218.917503,0.00018076,2]
[378565595,1754913128012,-799.520841,0.00018076,2]
[378565596,1754913128021,-799.520841,0.00018076,2]
[378565597,1754913128031,-223.997593,0.00018076,2]
[378565598,1754913128040,-253.657802,0.00018076,2]
[378565599,1754913128049,-223.997593,0.00018076,2]
[378565600,1754913128059,-151.0,0.00018076,2]
[378565601,1754913128069,-151.0,0.00018076,2]
[378565602,1754913128078,-240.543454,0.00018076,2]
[378565603,1754913128088,-240.543454,0.00018076,2]
[378565604,1754913128099,-581.201779,0.00018076,2]
[378565605,1754913128109,-581.201779,0.00018076,2]
[378565606,1754913128118,-151.0,0.00018076,2]
[378565607,1754913128128,-309.853147,0.00018076,2]
[378565608,1754913128137,-309.853147,0.00018076,2]
[378565609,1754913128148,-516.634903,0.00018076,2]
[378565610,1754913128158,-516.634903,0.00018076,2]
[378565611,1754913128168,-1271.592475,0.00018076,2]
[378565612,1754913128178,-1271.592475,0.00018076,2]
[378565613,1754913128187,-309.194123,0.00018078,2]
[378565614,1754913128197,-309.194123,0.00018078,2]
[378565615,1754913128206,-151.0,0.00018078,2]
[378565616,1754913128216,-151.0,0.00018078,2]
[378565617,1754913128226,-251.604759,0.00018078,2]
[378565618,1754913128235,-242.65034,0.00018078,2]
[378565619,1754913128245,-349.849984,0.00018078,2]
[378565620,1754913128255,-349.849984,0.00018078,2]
[378565621,1754913128265,-154.04177,0.00018078,2]
[378565622,1754913128275,-154.04177,0.00018078,2]
[378565623,1754913128286,-151.0,0.00018078,2]
[378565624,1754913128295,-151.0,0.00018078,2]
[378565625,1754913128305,-516.634903,0.00018078,2]
[378565626,1754913128314,-516.634903,0.00018078,2]
[378565627,1754913128324,-150.0,0.00018093,2]
[378565628,1754913128335,-300.0,0.000181,2]
[378565629,1754913128345,-575.31,0.00018106,2]
[378565630,1754913128355,-575.31,0.00018106,2]
[378565631,1754913128365,-575.31,0.00018106,2]
[378565632,1754913128378,-575.31,0.00018106,2]
[378565633,1754913128394,-575.31,0.00018106,2]
[378565634,1754913128404,-3376.46375566,0.00018106,2]
[378565635,1754913128413,-151.0,0.00018107,2]
[378565636,1754913128423,-353.915417,0.00018107,2]
[378565637,1754913128433,-353.915417,0.00018107,2]
[378565638,1754913128443,-223.997593,0.00018107,2]
[378565639,1754913128453,-223.997593,0.00018107,2]
[378565640,1754913128462,-309.853147,0.00018107,2]
[378565641,1754913128472,-309.853147,0.00018107,2]
[378565642,1754913128482,-1271.592475,0.00018107,2]
[378565643,1754913128492,-1271.592475,0.00018107,2]
[378565644,1754913128502,-162.89464287,0.00018108,2]
[378565645,1754913128512,-411.4133562,0.00018109,2]
[378565646,1754913128521,-150.0,0.00018109,2]
[378565647,1754913128531,-264.870503,0.00018114,2]
[378565648,1754913128541,-264.870503,0.00018114,2]
[378565649,1754913128551,-951.220244,0.00018114,2]
[378565650,1754913128560,-951.220244,0.00018114,2]
[378565651,1754913128570,-1807.8932486,0.00018114,2]
[378565652,1754913128580,-150.0,0.0001815,2]
[378565653,1754913128590,-150.0,0.0001815,2]
[378565654,1754913128599,-3501.39291462,0.00018161,2]
[378565655,1754913128609,-218.917503,0.00018167,2]
[378565656,1754913128618,-218.917503,0.00018167,2]
[378565657,1754913128627,-799.520841,0.00018167,2]
[378565658,1754913128637,-799.520841,0.00018167,2]
[378565659,1754913128648,-240.543454,0.00018167,2]
[378565660,1754913128658,-240.543454,0.00018167,2]
[378565661,1754913128667,-581.201779,0.00018167,2]
[378565662,1754913128677,-581.201779,0.00018167,2]
[378565663,1754913128687,-151.0,0.00018167,2]
[378565664,1754913128698,-250.0,0.00018167,2]
[378565665,1754913128708,-331.44995402,0.0001817,2]
[378565666,1754913128718,-150.0,0.00018184,2]
[378565667,1754913128730,-168.13,0.00018204,2]
[378565668,1754913128742,-150.0,0.00018212,2]
[378565669,1754913128754,-3630.94445246,0.00018216,2]
[378565670,1754913128763,-150.0,0.00018236,2]
[378565671,1754913128773,-23870.47,0.00018241,10]
[378565672,1754913128783,-400.0,0.00018266,2]
[378565673,1754913128793,-400.0,0.00018266,2]
[378565674,1754913128803,-914.13,0.00018266,2]
[378565675,1754913128813,-1959.51,0.00018266,2]
[378565676,1754913128823,-563.57,0.00018266,2]
[378565677,1754913128833,-1025.43,0.00018266,2]
[378565678,1754913128843,-400.0,0.00018267,2]
[378565679,1754913128853,-486.72,0.00018267,2]
[378565680,1754913128864,-400.0,0.00018267,2]
[378565681,1754913128874,-400.0,0.00018267,2]
[378565682,1754913128884,-400.0,0.00018267,2]
[378565683,1754913128894,-400.0,0.00018267,2]
[378565684,1754913128904,-258.39492273,0.00018267,2]
[378565685,1754913128914,-349.8875953,0.00018267,2]
[378565686,1754913128924,-885.25,0.00018267,2]
[378565687,1754913128934,-400.0,0.00018267,2]
[378565688,1754913128944,-782.6,0.00018267,2]
[378565689,1754913128954,-400.0,0.00018267,2]
[378565690,1754913128964,-400.0,0.00018267,2]
[378565691,1754913128973,-539.02,0.00018267,2]
[378565692,1754913128984,-516.56,0.00018267,2]
[378565693,1754913128994,-767.57,0.00018267,2]
[378565694,1754913129005,-682.78,0.00018267,2]
[378565695,1754913129015,-400.0,0.00018267,2]
[378565696,1754913129025,-1077.9,0.00018267,2]
[378565697,1754913129035,-1847.71,0.00018267,2]
[378565698,1754913129045,-629.18,0.00018267,2]
[378565699,1754913129055,-1572.94,0.00018267,2]
[378565700,1754913129065,-400.0,0.00018267,2]
[378565701,1754913129075,-717.66,0.00018267,2]
[378565702,1754913129086,-400.0,0.00018267,2]
[378565703,1754913129096,-486.47,0.00018267,2]
[378565704,1754913129106,-1360.56,0.00018267,2]
[378565705,1754913129116,-862.74,0.00018267,2]
[378565706,1754913129126,-1924.52,0.00018267,2]
[378565707,1754913129136,-400.0,0.00018267,2]
[378565708,1754913129147,-2103.16,0.00018267,2]
[378565709,1754913129157,-650.99,0.00018267,2]
[378565710,1754913129167,-400.0,0.00018267,2]
[378565711,1754913129178,-222.56257077,0.00018267,2]
[378565712,1754913129188,-450.63,0.00018267,2]
[378565713,1754913129198,-551.93,0.00018267,2]
[378565714,1754913129208,-535.63,0.00018267,2]
[378565715,1754913129218,-400.0,0.00018267,2]
[378565716,1754913129229,-1110.75,0.00018267,2]
[378565717,1754913129239,-616.85,0.00018267,2]
[378565718,1754913129248,-3665.68,0.00018267,2]
[378565719,1754913129262,-538.73,0.00018267,2]
[378565720,1754913129272,-400.0,0.00018267,2]
[378565721,1754913129282,-1238.34,0.00018267,2]
[378565722,1754913129293,-400.0,0.00018267,2]
[378565723,1754913129304,-400.0,0.00018267,2]
[378565724,1754913129314,-1103.47,0.00018267,2]
[378565725,1754913129324,-1832.23,0.00018267,2]
[378565726,1754913129335,-400.0,0.00018267,2]
[378565727,1754913129345,-667.01,0.00018267,2]
[378565728,1754913129360,-400.0,0.00018267,2]
[378565729,1754913129378,-3599.22,0.00018267,2]
[378565730,1754913129388,-400.0,0.00018267,2]
[378565731,1754913129398,-3965.48,0.00018267,2]
[378565732,1754913129408,-400.0,0.00018267,2]
[378565733,1754913129418,-763.33,0.00018267,2]
[378565734,1754913129428,-2315.63,0.00018267,2]
[378565735,1754913129438,-513.17,0.00018267,2]
[378565736,1754913129448,-1032.43,0.00018267,2]
[378565737,1754913129458,-2928.22,0.00018267,2]
[378565738,1754913129468,-625.35,0.00018267,2]
[378565739,1754913129478,-400.0,0.00018267,2]
[378565740,1754913129488,-1951.78,0.00018267,2]
[378565741,1754913129498,-1219.07,0.00018267,2]
[378565742,1754913129512,-400.0,0.00018267,2]
[378565743,1754913129522,-400.0,0.00018267,2]
[378565744,1754913129532,-400.0,0.00018267,2]
[378565745,1754913129543,-1303.97,0.00018267,2]
[378565746,1754913129779,-1039.56,0.00018267,2]
[378565747,1754913129790,-617.95,0.00018267,2]
[378565748,1754913129799,-602.38,0.00018267,2]
[378565749,1754913129809,-401.58,0.00018267,2]
[378565750,1754913129818,-5755.72,0.00018267,2]
[378565751,1754913129827,-783.72,0.00018267,2]
[378565752,1754913129836,-400.0,0.00018267,2]
[378565753,1754913129846,-400.0,0.00018267,2]
[378565754,1754913129855,-1955.89,0.00018267,2]
[378565755,1754913129864,-479.01,0.00018267,2]
[378565756,1754913129874,-1996.46,0.00018267,2]
[378565757,1754913129883,-1475.85,0.00018267,2]
[378565758,1754913129894,-447.09,0.00018267,2]
[378565759,1754913129904,-578.81,0.00018267,2]
[378565760,1754913129913,-400.0,0.00018267,2]
[378565761,1754913129923,-791.98,0.00018267,2]
[378565762,1754913129932,-2675.98,0.00018267,2]
[378565763,1754913129942,-497.831891,0.00018267,2]
[378565764,1754913129951,-1152.081676,0.00018267,2]
[378565765,1754913129960,-400.0,0.00018267,2]
[378565766,1754913129970,-400.0,0.00018267,2]
[378565767,1754913129979,-470.78,0.00018267,2]
[378565768,1754913129989,-696.81,0.00018267,2]
[378565769,1754913129999,-6727.5,0.00018267,2]
[378565770,1754913130009,-1016.93,0.00018267,2]
[378565771,1754913130018,-400.0,0.00018267,2]
[378565772,1754913130028,-610.99,0.00018267,2]
[378565773,1754913130037,-529.01,0.00018267,2]
[378565774,1754913130046,-400.0,0.00018267,2]
[378565775,1754913130055,-5623.33,0.00018267,2]
[378565776,1754913130065,-1089.579135,0.00018267,2]
[378565777,1754913130075,-546.53,0.00018267,2]
[378565778,1754913130085,-400.0,0.00018267,2]
[378565779,1754913130094,-400.0,0.00018267,2]
[378565780,1754913130103,-251.54096025,0.00018267,2]
[378565781,1754913130113,-400.0,0.00018267,2]
[378565782,1754913130122,-400.0,0.00018267,2]
[378565783,1754913130132,-790.77,0.00018267,2]
[378565784,1754913130141,-2711.02,0.00018267,2]
[378565785,1754913130152,-895.23,0.00018267,2]
[378565786,1754913130162,-487.57,0.00018267,2]
[378565787,1754913130171,-1287.58,0.00018267,2]
[378565788,1754913130181,-532.2,0.00018267,2]
[378565789,1754913130192,-709.95,0.00018267,2]
[378565790,1754913130203,-1341.71,0.00018267,2]
[378565791,1754913130213,-412.15,0.00018267,2]
[378565792,1754913130222,-400.0,0.00018268,2]
[378565793,1754913130231,-411.4,0.00018268,2]
[378565794,1754913130241,-1472.06,0.00018268,2]
[378565795,1754913130252,-604.88,0.00018268,2]
[378565796,1754913130268,-505.49,0.00018268,2]
[378565797,1754913130279,-879.62,0.00018268,2]
[378565798,1754913130288,-400.0,0.00018268,2]
[378565799,1754913130298,-829.69,0.00018268,2]
[378565800,1754913130308,-515.07,0.00018268,2]
[378565801,1754913130317,-659.98,0.00018268,2]
[378565802,1754913130326,-400.0,0.00018268,2]
[378565803,1754913130337,-771.45,0.00018268,2]
[378565804,1754913130347,-400.0,0.00018268,2]
[378565805,1754913130355,-506.28,0.00018268,2]
[378565806,1754913130365,-743.21,0.00018268,2]
[378565807,1754913130374,-942.45,0.00018268,2]
[378565808,1754913130383,-540.15,0.00018268,2]
[378565809,1754913130392,-400.0,0.00018268,2]
[378565810,1754913130404,-400.0,0.00018268,2]
[378565811,1754913130414,-523.63,0.00018268,2]
[378565812,1754913130423,-400.0,0.00018268,2]
[378565813,1754913130433,-408.21,0.00018268,2]
[378565814,1754913130442,-599.86,0.00018268,2]
[378565815,1754913130451,-893.56,0.00018268,2]
[378565816,1754913130461,-400.0,0.00018268,2]
[378565817,1754913130470,-400.0,0.00018268,2]
[378565818,1754913130479,-400.0,0.00018268,2]
[378565819,1754913130488,-759.92,0.00018268,2]
[378565820,1754913130498,-464.83,0.00018268,2]
[378565821,1754913130507,-400.0,0.00018268,2]
[378565822,1754913130517,-400.0,0.00018268,2]
[378565823,1754913130526,-400.0,0.00018268,2]
[378565824,1754913130536,-862.15,0.00018268,2]
[378565825,1754913130546,-400.0,0.00018268,2]
[378565826,1754913130556,-817.78,0.00018268,2]
[378565827,1754913130565,-400.0,0.00018268,2]
[378565828,1754913130574,-400.0,0.00018268,2]
[378565829,1754913130584,-400.0,0.00018268,2]
[378565830,1754913130593,-445.95,0.00018268,2]
[378565831,1754913130603,-479.75,0.00018268,2]
[378565832,1754913130612,-681.68,0.00018268,2]
[378565833,1754913130623,-419.27,0.00018268,2]
[378565834,1754913130632,-400.0,0.00018268,2]
[378565835,1754913130642,-400.0,0.00018268,2]
[378565836,1754913130654,-1171.58,0.00018268,2]
[378565837,1754913130664,-400.0,0.00018268,2]
[378565838,1754913130673,-652.15,0.00018268,2]
[378565839,1754913130682,-400.0,0.00018268,2]
[378565840,1754913130692,-400.0,0.00018268,2]
[378565841,1754913130701,-895.92,0.00018268,2]
[378565842,1754913130710,-865.05,0.00018268,2]
[378565843,1754913130720,-620.65,0.00018268,2]
[378565844,1754913130730,-401.39,0.00018268,2]
[378565845,1754913130743,-1011.29,0.00018268,2]
[378565846,1754913130758,-475.4,0.00018268,2]
[378565847,1754913130768,-400.0,0.00018268,2]
[378565848,1754913130777,-444.01,0.00018268,2]
[378565849,1754913130786,-1023.09,0.00018268,2]
[378565850,1754913130796,-695.97,0.00018268,2]
[378565851,1754913130806,-1133.88,0.00018268,2]
[378565852,1754913130815,-694.53,0.00018268,2]
[378565853,1754913130824,-400.0,0.00018268,2]
[378565854,1754913130833,-758.91,0.00018268,2]
[378565855,1754913130843,-422.25,0.00018268,2]
[378565856,1754913130853,-890.17,0.00018268,2]
[378565857,1754913130862,-860.13,0.00018268,2]
[378565858,1754913130871,-400.0,0.00018268,2]
[378565859,1754913130881,-470.87,0.00018268,2]
[378565860,1754913130891,-1394.05,0.00018268,2]
[378565861,1754913130902,-400.0,0.00018268,2]
[378565862,1754913130912,-400.0,0.00018268,2]
[378565863,1754913130923,-910.03,0.00018268,2]
[378565864,1754913130933,-962.55,0.00018268,2]
[378565865,1754913130943,-1368.56,0.00018268,2]
[378565866,1754913130953,-743.88,0.00018268,2]
[378565867,1754913130963,-1031.13,0.00018268,2]
[378565868,1754913130972,-409.76,0.00018268,2]
[378565869,1754913130982,-540.06,0.00018268,2]
[378565870,1754913130991,-845.56,0.00018268,2]
[378565871,1754913131002,-792.64,0.00018268,2]
[378565872,1754913131011,-330.40479161,0.00018268,2]
[378565873,1754913131020,-1762.08,0.00018268,2]
[378565874,1754913131031,-593.38,0.00018268,2]
[378565875,1754913131041,-597.49,0.00018268,2]
[378565876,1754913131051,-506.13,0.00018268,2]
[378565877,1754913131061,-1629.14,0.00018268,2]
[378565878,1754913131070,-993.68,0.00018268,2]
[378565879,1754913131081,-400.0,0.00018268,2]
[378565880,1754913131090,-400.0,0.00018268,2]
[378565881,1754913131100,-513.33,0.00018268,2]
[378565882,1754913131111,-400.0,0.00018268,2]
[378565883,1754913131120,-1141.73,0.00018268,2]
[378565884,1754913131131,-400.0,0.00018268,2]
[378565885,1754913131140,-670.5,0.00018268,2]
[378565886,1754913131152,-423.65,0.00018268,2]
[378565887,1754913131162,-892.5,0.00018268,2]
[378565888,1754913131172,-400.0,0.00018268,2]
[378565889,1754913131181,-400.0,0.00018268,2]
[378565890,1754913131191,-400.0,0.00018268,2]
[378565891,1754913131200,-908.52,0.00018268,2]
[378565892,1754913131209,-965.86,0.00018268,2]
[378565893,1754913131219,-670.06,0.00018268,2]
[378565894,1754913131229,-507.43501467,0.00018268,2]
[378565895,1754913131238,-400.0,0.00018268,2]
[378565896,1754913131248,-874.48,0.00018268,2]
[378565897,1754913131262,-979.39,0.00018268,2]
[378565898,1754913131271,-1333.91,0.00018268,2]
[378565899,1754913131281,-905.1,0.00018268,2]
[378565900,1754913131291,-400.0,0.00018268,2]
[378565901,1754913131300,-894.54,0.00018268,2]
[378565902,1754913131310,-676.94,0.00018268,2]
[378565903,1754913131319,-400.0,0.00018268,2]
[378565904,1754913131329,-400.0,0.00018268,2]
[378565905,1754913131339,-400.0,0.00018268,2]
[378565906,1754913131349,-542.48,0.00018268,2]
[378565907,1754913131359,-508.79,0.00018268,2]
[378565908,1754913131368,-999.87,0.00018268,2]
[378565909,1754913131377,-3049.11,0.00018268,2]
[378565910,1754913131387,-1358.48,0.00018268,2]
[378565911,1754913131397,-281.3745544,0.00018268,2]
[378565912,1754913131406,-400.0,0.00018268,2]
[378565913,1754913131415,-588.01,0.00018268,2]
[378565914,1754913131425,-400.0,0.00018268,2]
[378565915,1754913131434,-917.7,0.00018268,2]
[378565916,1754913131444,-575.14,0.00018268,2]
[378565917,1754913131454,-534.7,0.00018268,2]
[378565918,1754913131463,-400.0,0.00018268,2]
[378565919,1754913131473,-1119.85,0.00018268,2]
[378565920,1754913131482,-400.0,0.00018268,2]
[378565921,1754913131491,-400.0,0.00018268,2]
[378565922,1754913131501,-1484.62,0.00018268,2]
[378565923,1754913131526,-1423.31,0.00018268,2]
[378565924,1754913131542,-1105.92,0.00018268,2]
[378565925,1754913131561,-778.81,0.00018268,2]
[378565926,1754913131580,-400.0,0.00018268,2]
[378565927,1754913131596,-400.0,0.00018268,2]
[378565928,1754913131614,-513.21,0.00018268,2]
[378565929,1754913131633,-1184.91,0.00018268,2]
[378565930,1754913131656,-446.8,0.00018268,2]
[378565931,1754913131674,-400.0,0.00018268,2]
[378565932,1754913131692,-2031.02,0.00018268,2]
[378565933,1754913131711,-400.0,0.00018268,2]
[378565934,1754913131726,-569.54,0.00018268,2]
[378565935,1754913131748,-1438.07,0.00018268,2]
[378565936,1754913131761,-1835.91,0.00018268,2]
[378565937,1754913131779,-1664.57,0.00018268,2]
[378565938,1754913131794,-474.7,0.00018268,2]
[378565939,1754913131812,-1140.5,0.00018268,2]
[378565940,1754913131828,-420.23,0.00018268,2]
[378565941,1754913131842,-558.06,0.00018268,2]
[378565942,1754913131858,-400.0,0.00018268,2]
[378565943,1754913131873,-912.23,0.00018268,2]